Cogmind - Beta 9.6 @@@ ROGUE MODE // 2020.07.04 @ 15:41:09 Player: Nalzok Result: Destroyed by B-86 Titan with Matter Neutralizer Performance ------------- Evolutions (5) 2500 Regions Visited (14) 2800 Robots Destroyed (107) 535 Value Destroyed (4258) 4258 Prototype IDs (36) 720 Alien Tech Used (1) 200 Bonus (1092) 1092 TOTAL SCORE: 12105 Bonus ------- High Alert Combat Kills 201 Follower Combat Kills 276 Aligned with FarCom 300 Met Imprinter 300 Met Zhirov 300 Friendly Fire -285 Cogmind --------- Core Integrity 0/1000 Matter 300/300 Energy 98/100 System Corruption 19% Temperature Cool (9) Movement Core (50) Location -4/Proximity Caves Parts ------- > --- POWER (1) -------- (None) > --- PROPULSION (4) --- (None) > --- UTILITY (8) ------ Experimental Signal Interpreter Modified TNC 0b10 Decoder Chip [Scout] Advanced Core Analyzer Advanced Hacking Suite > --- WEAPON (4) ------- (None) > --- INVENTORY (4) ---- Heavy Antimatter Reactor High-capacity Storage Unit Precision Matter Filter Transdimensional Reconstructor Peak State ------------ > --- POWER ------------ Micro Fission Core > --- PROPULSION ------- Medium Treads Armored Medium Treads Armored Huge Wheel > --- UTILITY ---------- Advanced Heat Sink High-capacity Storage Unit Experimental Signal Interpreter Experimental Terrain Scan Processor Modified TNC Advanced Targeting Computer Improved Core Shielding Advanced System Shield > --- WEAPON ----------- Improved Heavy Laser Heavy Proton Cannon KE Penetrator Enhanced Gauss Cannon > --- INVENTORY -------- Cooling System High-capacity Storage Unit 0b10 Decoder Chip [Scout] 0b10 Decoder Chip [Skirmisher] Advanced Targeting Computer Advanced Core Analyzer Improved Core Shielding High-powered Shock Rifle Disruptor Cannon Enhanced Gauss Cannon Enhanced Gauss Cannon Heavy Rocket Launcher [Rating: 92] Favorites ----------- Power Micro Nuclear Core Engine Ion Engine Power Core Micro Nuclear Core Reactor Heavy Antimatter Reactor Propulsion Aluminum Leg Treads Armored Medium Treads Leg Aluminum Leg Wheel Armored Huge Wheel Flight Unit Makeshift Flight Unit Utility Humpback Device Advanced Heat Sink Storage Humpback Processor Modified TNC Hackware Hacking Suite Protection Utility Shielding Weapon Advanced Assault Cannon Energy Gun Improved Heavy Laser Energy Cannon Heavy Proton Cannon Ballistic Gun Gauss Rifle Ballistic Cannon Advanced Assault Cannon Launcher Heavy Rocket Launcher Impact Weapon Maul Build | -11 -10 -10 -10 -9 -8 -7 -7 -6 -5 -5 -5 -5 -5 -4 ------- Run | Scr Mat Min Exi Min Mat Fac Low Zio Pro Fac Upp Upp Zhi Pro Slots Evolved 10 | . . . . . 4 2 . . . 4 . . . . Power . | . . . . . . . . . . . . . . . Propulsion 2 | . . . . . 2 . . . . . . . . . Utility 6 | . . . . . 2 2 . . . 2 . . . . Weapon 2 | . . . . . . . . . . 2 . . . . Parts Attached 150 | . 6 6 1 4 14 20 . 1 5 70 8 8 4 3 Power 14 | . 1 1 . . 1 5 . . 1 3 1 . 1 . Engine 7 | . 1 1 . . 1 2 . . 1 1 . . . . Core 6 | . . . . . . 3 . . . 2 1 . . . Reactor 1 | . . . . . . . . . . . . . 1 . Propulsion 43 | . 2 2 . 1 6 5 . . 3 20 1 1 . 2 Treads 13 | . . . . . . . . . . 13 . . . . Leg 28 | . 2 2 . 1 6 5 . . 3 6 1 1 . 1 Wheel 1 | . . . . . . . . . . 1 . . . . Hover . | . . . . . . . . . . . . . . . Flight 1 | . . . . . . . . . . . . . . 1 Utility 39 | . 2 . 1 . 4 3 . 1 . 18 . 6 3 1 Device 10 | . . . . . 1 . . . . 6 . 2 1 . Storage 5 | . 1 . 1 . . . . 1 . 2 . . . . Processor 14 | . 1 . . . 1 1 . . . 7 . 4 . . Hackware 4 | . . . . . 1 . . . . 1 . . 1 1 Protection 6 | . . . . . 1 2 . . . 2 . . 1 . Artifact . | . . . . . . . . . . . . . . . Weapon 54 | . 1 3 . 3 3 7 . . 1 29 6 1 . . Energy Gun 10 | . . . . . . . . . . 10 . . . . Energy Cannon 9 | . . . . . 1 2 . . . 6 . . . . Ballistic Gun 17 | . 1 2 . 2 1 2 . . . 6 2 1 . . Ballistic Cannon 7 | . . . . . 1 2 . . . 2 2 . . . Launcher 10 | . . 1 . 1 . . . . 1 5 2 . . . Special Weapon . | . . . . . . . . . . . . . . . Impact Weapon 1 | . . . . . . 1 . . . . . . . . Slashing Weapon . | . . . . . . . . . . . . . . . Piercing Weapon . | . . . . . . . . . . . . . . . Special Melee Weapon . | . . . . . . . . . . . . . . . Unidentified Prototypes 10 | . . . . . . 1 . . . 6 . . 3 . Parts Lost 58 | . 1 . . . 1 2 . . 7 21 11 9 . 6 Power 4 | . . . . . . . . . 2 1 1 . . . Propulsion 20 | . . . . . . 2 . . 5 6 2 2 . 3 Utility 14 | . . . . . . . . . . 4 3 4 . 3 Weapon 20 | . 1 . . . 1 . . . . 10 5 3 . . Highest Loss Streak 8 | . 1 . . . 1 1 . . 6 4 7 8 . 6 Average Slot Usage (%) 87 | . 99 100 96 85 89 91 92 87 79 89 76 55 43 57 Engine 4 | . 14 14 14 14 9 2 . . 5 1 . . . . Core 3 | . . . . . . 4 7 7 . 3 4 2 . . Treads 2 | . . . . . . . . . . 12 . . . . Leg 22 | . 28 28 28 28 36 29 30 30 26 4 6 4 5 8 Device 1 | . . . . . . . . . . 6 3 4 2 . Storage 9 | . 14 14 14 14 9 7 7 11 15 6 5 2 . . Processor 15 | . 13 14 10 . 9 12 15 15 15 23 20 28 29 27 Hackware 2 | . . . . . 7 7 7 2 . . 3 . 2 9 Protection 2 | . . . . . 1 9 7 2 . 2 5 2 2 5 Energy Gun 1 | . . . . . . . . . . 4 6 . . . Energy Cannon 1 | . . . . . 6 1 . . . 5 . . . . Ballistic Gun 10 | . 28 28 28 24 7 6 7 7 5 5 2 1 . . Ballistic Cannon 3 | . . . . . . 6 7 7 7 2 7 5 . . Launcher 1 | . . . . 3 4 . . . 1 2 . . . . Naked Turns . | . . . . . . . . . . . . . . . Heaviest Build 197 | 10 24 24 88 90 96 99 98 177 175 197 73 77 2 2 Greatest Support 100 | 20 20 20 20 20 46 48 48 48 48 100 28 28 3 8 Greatest Overweight (x) 25 | . 1 1 4 4 2 2 2 3 9 5 2 25 . . Average Overweight (x) 1 | . . 1 1 4 1 1 2 2 3 1 1 . . . Largest Inventory Capacity 44 | 6 10 10 24 24 24 24 24 44 44 44 12 12 4 4 Average Capacity 23 | 6 8 10 13 24 24 24 24 35 44 20 12 8 4 4 Most Carried 44 | 6 10 10 13 24 24 24 24 44 44 44 12 9 4 4 Average Carried 21 | 3 7 9 10 20 23 23 24 33 43 18 10 5 3 4 Final Capacity 44 | 6 10 10 24 24 24 24 24 44 44 12 12 4 4 4 Final Carried 44 | 2 10 10 13 24 24 24 24 44 42 12 9 4 4 4 Class Distribution -------------------- 34% | Hauler-Mutant 23% | Scavenger-Mutant 18% | Mutant 9% | Scavenger-Skirmisher 6% | Scavenger-Gunner 4% | Hauler-Skirmisher Dominant Class ---------------- Mutant | -10/Materials Mutant | -10/Mines Mutant | -10/Exiles Hauler-Mutant | -9/Mines Hauler-Mutant | -8/Materials Scavenger-Mutant | -7/Factory Scavenger-Mutant | -7/Lower Caves Hauler-Mutant | -6/Zion Hauler-Mutant | -5/Proximity Caves Scavenger-Skirmisher | -5/Factory Scavenger-Gunner | -5/Upper Caves Mutant | -5/Upper Caves Mutant | -5/Zhirov Hacker-Mutant | -4/Proximity Caves Resources | -11 -10 -10 -10 -9 -8 -7 -7 -6 -5 -5 -5 -5 -5 -4 ----------- Run | Scr Mat Min Exi Min Mat Fac Low Zio Pro Fac Upp Upp Zhi Pro Matter Collected 3487 | 200 178 124 10 51 279 274 42 28 270 1306 362 285 . 78 Remotely . | . . . . . . . . . . . . . . . Salvage Created 3902 | . 207 154 . 130 423 323 . . 251 1846 447 121 . . Parts 189 | . 12 11 . 9 25 16 . . 6 91 12 7 . . Haulers Intercepted 1 | . . . . . . . . . . 1 . . . . Recyclers Shooed 7 | . . . . . . 2 . . . 5 . . . . Parts Field Recycled . | . . . . . . . . . . . . . . . Retrieved Matter . | . . . . . . . . . . . . . . . Parts Self-Destructed 42 | . . . . . . . 10 . 5 . 9 17 . 1 Prevented 3 | . . . . . . . . . . . 2 . . 1 Kills | -11 -10 -10 -10 -9 -8 -7 -7 -6 -5 -5 -5 -5 -5 -4 ------- Run | Scr Mat Min Exi Min Mat Fac Low Zio Pro Fac Upp Upp Zhi Pro Combat Hostiles Destroyed 85 | . 4 7 . 5 12 3 . . 9 32 10 3 . . Guns 31 | . 4 5 . 3 2 . . . 2 12 3 . . . Cannons 27 | . . . . . 4 3 . . 6 8 3 3 . . AOE 27 | . . 2 . 2 6 . . . 1 12 4 . . . Classes Destroyed 14 | . 3 1 . . 3 4 . . 1 2 . . . . Worker 4 | . . . . . . 1 . . . 3 . . . . Builder 7 | . 1 . . . 1 . . . . 5 . . . . Hauler 1 | . . . . . . . . . . 1 . . . . Recycler 5 | . . . . . . 3 . . . 2 . . . . Mechanic 1 | . . . . . . . . . . 1 . . . . Operator 2 | . . . . . . . . . 1 1 . . . . Watcher 2 | . 1 . . . . . . . . 1 . . . . Swarmer 27 | . . 5 . 3 3 . . . 4 8 3 1 . . Grunt 32 | . 4 2 . 2 5 . . . 3 12 3 1 . . Brawler 3 | . . . . . 1 . . . 1 . 1 . . . Duelist 1 | . . . . . 1 . . . . . . . . . Sentry 8 | . . . . . 2 1 . . . 2 2 1 . . Hunter 4 | . . . . . . 1 . . . 2 1 . . . Programmer 10 | . . . . . . 1 . . 1 8 . . . . Best Kill Streak 11 | . 2 3 . 3 5 2 . . 4 11 4 2 . . Combat Bots Only 9 | . 2 3 . 3 5 1 . . 4 9 4 2 . . Max Kills in Single Turn 7 | . 1 2 . 2 4 1 . . 2 7 2 1 . . Gunslinging 1 | . . 1 . . . . . . . . . . . . Exploded 4 | . . 2 . 2 3 . . . 1 4 1 . . . Melee . | . . . . . . . . . . . . . . . Uniques/NPCs Destroyed . | . . . . . . . . . . . . . . . Combat | -11 -10 -10 -10 -9 -8 -7 -7 -6 -5 -5 -5 -5 -5 -4 -------- Run | Scr Mat Min Exi Min Mat Fac Low Zio Pro Fac Upp Upp Zhi Pro Damage Taken 9363 | . 354 160 . 127 500 343 . . 1631 3166 1343 1222 . 517 Core 1468 | . 20 23 . 22 78 37 . . 288 178 164 394 . 264 Absorbed by Shields . | . . . . . . . . . . . . . . . Core Remaining (%) 78 | 100 . . . 74 85 . . . 53 . . . . . Volleys Fired 235 | . 33 12 . 7 28 22 . 1 25 75 18 14 . . Largest 4 | . 2 2 . 2 2 2 . 2 2 4 4 3 . . Hottest 266 | . 40 50 . 50 99 76 . 76 81 266 221 142 . . Shots Fired 529 | . 66 24 . 13 47 44 . 2 50 187 59 37 . . Gun 304 | . 66 23 . 11 18 22 . 1 20 107 26 10 . . Cannon 191 | . . . . . 23 22 . 1 25 64 29 27 . . Launcher 34 | . . 1 . 2 6 . . . 5 16 4 . . . Special . | . . . . . . . . . . . . . . . Kinetic 365 | . 66 23 . 11 21 44 . 2 45 76 40 37 . . Thermal 70 | . . . . . 20 . . . . 44 6 . . . Explosive 34 | . . 1 . 2 6 . . . 5 16 4 . . . Electromagnetic 60 | . . . . . . . . . . 51 9 . . . Robot Hit Streak 14 | . 13 5 . 4 8 10 . . 5 14 7 4 . . Robot Miss Streak 7 | . 7 3 . 1 3 3 . . 4 6 4 5 . . Penetration Max 1 | . . . . . . 1 . . 1 1 . . . . Secondary Targets 2 | . . 1 . 1 . . . . . . . . . . Max Gunslinging Chain 1 | . . 1 . 1 . . . . . . . . . . Shots Hit Robots 319 | . 27 13 . 8 31 28 . . 31 127 32 22 . . Core Hits 254 | . 14 11 . 10 33 13 . . 22 119 22 10 . . Critical Hits 13 | . . . . . . . . . . 9 3 1 . . Critical Kills 4 | . . . . . . . . . . 3 1 . . . Critical Parts Destroyed 8 | . . . . . . . . . . 6 1 1 . . Melee Attacks . | . . . . . . . . . . . . . . . Impact . | . . . . . . . . . . . . . . . Slashing . | . . . . . . . . . . . . . . . Piercing . | . . . . . . . . . . . . . . . Sneak Attacks . | . . . . . . . . . . . . . . . Combat Hostiles . | . . . . . . . . . . . . . . . Follow-up Attacks . | . . . . . . . . . . . . . . . Damage Inflicted 11100 | . 433 238 . 181 1037 594 . . 1082 5588 1174 773 . . Guns 3542 | . 433 157 . 69 96 199 . . 363 1791 339 95 . . Cannons 3514 | . . . . . 329 395 . . 445 1266 401 678 . . Explosions 4044 | . . 81 . 112 612 . . . 274 2531 434 . . . Melee . | . . . . . . . . . . . . . . . Ramming . | . . . . . . . . . . . . . . . Kinetic 4788 | . 433 157 . 69 133 594 . . 808 1274 547 773 . . Thermal 1227 | . . . . . 292 . . . . 863 72 . . . Explosive 3841 | . . 81 . 112 612 . . . 274 2328 434 . . . Electromagnetic 1244 | . . . . . . . . . . 1123 121 . . . Impact . | . . . . . . . . . . . . . . . Slashing . | . . . . . . . . . . . . . . . Piercing . | . . . . . . . . . . . . . . . Highest Corruption 19 | . . . . . . 1 1 1 7 10 10 19 19 19 Average Corruption 5 | . . . . . . 1 1 1 2 8 10 14 19 19 Corruption Purged . | . . . . . . . . . . . . . . . Effects 175 | . . . . . . 3 1 6 10 72 40 22 9 12 Message Errors 37 | . . . . . . 1 1 2 5 14 8 3 1 2 Matter Fused 22 | . . . . . . . . . 2 13 4 1 1 1 Heat Flow Errors 16 | . . . . . . . . . . 6 3 3 3 1 Energy Discharges 16 | . . . . . . . . 4 1 7 1 1 . 2 Data Loss (minor) 13 | . . . . . . 1 . . 1 8 2 1 . . Data Loss (major) 4 | . . . . . . . . . . 2 1 1 . . Misfires 3 | . . . . . . . . . . . 2 1 . . Alerts 3 | . . . . . . . . . . . 2 1 . . Misdirections 29 | . . . . . . . . . . 2 11 6 4 6 Targeting Errors 25 | . . . . . . 1 . . 1 15 4 4 . . Weapon Failures 7 | . . . . . . . . . . 5 2 . . . Overload Shots . | . . . . . . . . . . . . . . . Overflow Damage 171 | . . . . . 12 6 . . 2 148 3 . . . Projectiles 67 | . . . . . 8 6 . . . 53 . . . . Explosions 104 | . . . . . 4 . . . 2 95 3 . . . Melee . | . . . . . . . . . . . . . . . Knockbacks 12 | . . . . . . 2 . . 2 3 2 3 . . Impact . | . . . . . . . . . . . . . . . Kinetic 12 | . . . . . . 2 . . 2 3 2 3 . . Secondary . | . . . . . . . . . . . . . . . Self-Inflicted Damage 393 | . . 4 . 36 61 . . . 90 166 36 . . . Shots 13 | . . 1 . 1 2 . . . 3 4 2 . . . Rammed . | . . . . . . . . . . . . . . . Targets Rammed . | . . . . . . . . . . . . . . . Kicked . | . . . . . . . . . . . . . . . Crushed . | . . . . . . . . . . . . . . . Highest Temperature 440 | . 12 10 . 6 99 440 . . 135 438 226 298 234 112 Average Temperature 78 | . 7 8 . 6 30 89 . . 66 108 61 110 100 72 Received Heat Transfer 1719 | . 198 78 . 18 189 54 . . 360 402 144 228 . 48 Effects 1 | . . . . . . 1 . . . . . . . . Matter Decay 1 | . . . . . . 1 . . . . . . . . Siege Activations . | . . . . . . . . . . . . . . . Robots Corrupted 1 | . . . . . . . . . . 1 . . . . Combat Hostiles . | . . . . . . . . . . . . . . . Parts Fried 6 | . . . . . . . . . . 6 . . . . Impact Corruptions . | . . . . . . . . . . . . . . . Robots Melted . | . . . . . . . . . . . . . . . Combat Hostiles . | . . . . . . . . . . . . . . . Parts Melted 4 | . . . . 1 2 . . . . 1 . . . . Heat Transferred 1869 | . . . . . 599 . . . . 1159 111 . . . Parts Sabotaged . | . . . . . . . . . . . . . . . Parts Stolen . | . . . . . . . . . . . . . . . Parts Stripped . | . . . . . . . . . . . . . . . Power Chain Reactions 3 | . . . . . 2 . . . . 1 . . . . Missiles Intercepted . | . . . . . . . . . . . . . . . Alert | -11 -10 -10 -10 -9 -8 -7 -7 -6 -5 -5 -5 -5 -5 -4 ------- Run | Scr Mat Min Exi Min Mat Fac Low Zio Pro Fac Upp Upp Zhi Pro Peak Influence 561 | . 80 170 . 100 395 221 . . . 561 . . . . Average Influence 145 | . 18 46 . 34 129 73 . . . 296 . . . . Maximum Alert Level 2 | . . . . . 1 1 . . . 2 . . . . Low Security (%) 75 | 100 100 100 . 100 71 94 . . . 43 . . . . Level 1 7 | . . . . . 28 5 . . . 10 . . . . Level 2 16 | . . . . . . . . . . 45 . . . . Level 3 . | . . . . . . . . . . . . . . . Level 4 . | . . . . . . . . . . . . . . . Level 5 . | . . . . . . . . . . . . . . . High Security . | . . . . . . . . . . . . . . . Max Security . | . . . . . . . . . . . . . . . Squads Dispatched 23 | . 1 . . . 4 2 . . . 15 . 1 . . Investigation 1 | . . . . . . . . . . 1 . . . . Extermination 6 | . . . . . . 2 . . . 4 . . . . Reinforcement 8 | . 1 . . . 2 . . . . 5 . . . . Assault 4 | . . . . . 1 . . . . 2 . 1 . . Garrison 4 | . . . . . 1 . . . . 3 . . . . Intercept . | . . . . . . . . . . . . . . . Construction Impeded 2 | . . . . . . . . . . 2 . . . . Haulers Reinforced 2 | . . . . . . . . . . 2 . . . . Stealth | -11 -10 -10 -10 -9 -8 -7 -7 -6 -5 -5 -5 -5 -5 -4 --------- Run | Scr Mat Min Exi Min Mat Fac Low Zio Pro Fac Upp Upp Zhi Pro Distress Signals 3 | . 1 . . . . . . . . 2 . . . . Communications Jammed . | . . . . . . . . . . . . . . . Distress Signals . | . . . . . . . . . . . . . . . Times Spotted 159 | . 12 9 . 8 22 9 . . 8 42 12 19 . 18 Peak Tracking Total 12 | . 3 3 . 3 6 2 . . 4 6 8 7 . 12 Tactical Retreats 16 | . 3 1 . 1 . . . . . 3 1 5 . 2 Traps | -11 -10 -10 -10 -9 -8 -7 -7 -6 -5 -5 -5 -5 -5 -4 ------- Run | Scr Mat Min Exi Min Mat Fac Low Zio Pro Fac Upp Upp Zhi Pro Traps Triggered 8 | . . . . . 1 2 . . . 5 . . . . Indirectly . | . . . . . . . . . . . . . . . Trap Hack Attempts . | . . . . . . . . . . . . . . . Triggered . | . . . . . . . . . . . . . . . Disarmed . | . . . . . . . . . . . . . . . Reprogrammed . | . . . . . . . . . . . . . . . Reused . | . . . . . . . . . . . . . . . Traps Extracted . | . . . . . . . . . . . . . . . Installed . | . . . . . . . . . . . . . . . Triggered 3 | . . . . . . . . . . . . . . 3 Machines | -11 -10 -10 -10 -9 -8 -7 -7 -6 -5 -5 -5 -5 -5 -4 ---------- Run | Scr Mat Min Exi Min Mat Fac Low Zio Pro Fac Upp Upp Zhi Pro Machines Disabled 31 | . 1 1 . . 2 . . 1 . 25 . 1 . . Max in Single Turn 4 | . 1 1 . . 2 . . 1 . 4 . 1 . . Garrison Access 2 | . . . . . 1 . . . . 1 . . . . Machines Sabotaged . | . . . . . . . . . . . . . . . Garrisons Compromised . | . . . . . . . . . . . . . . . Overloaded Fab Kills . | . . . . . . . . . . . . . . . Fab Network Shutdowns . | . . . . . . . . . . . . . . . Hacking | -11 -10 -10 -10 -9 -8 -7 -7 -6 -5 -5 -5 -5 -5 -4 --------- Run | Scr Mat Min Exi Min Mat Fac Low Zio Pro Fac Upp Upp Zhi Pro Machines Accessed 25 | . 4 1 2 . 5 3 . . . 8 . . 2 . Terminals 19 | . 4 1 . . 5 3 . . . 6 . . . . Fabricators 1 | . . . . . . . . . . 1 . . . . Repair Stations . | . . . . . . . . . . . . . . . Recycling Units . | . . . . . . . . . . . . . . . Scanalyzers . | . . . . . . . . . . . . . . . Garrison Access 1 | . . . . . . . . . . 1 . . . . Total Hacks 61 | . 9 2 2 . 13 11 . . . 22 . . 2 . Successful 28 | . 4 2 2 . 3 8 . . . 7 . . 2 . Failed 33 | . 5 . . . 10 3 . . . 15 . . . . Catastrophic 5 | . . . . . 1 . . . . 4 . . . . Database Lockouts . | . . . . . . . . . . . . . . . Manual 33 | . 8 2 1 . 6 9 . 1 . 6 . . . . Terminals 52 | . 9 2 . . 13 11 . . . 17 . . . . Fabricators 4 | . . . . . . . . . . 4 . . . . Repair Stations . | . . . . . . . . . . . . . . . Recycling Units . | . . . . . . . . . . . . . . . Scanalyzers . | . . . . . . . . . . . . . . . Garrison Access 1 | . . . . . . . . . . 1 . . . . Terminal Hacks 19 | . 4 2 2 . 3 3 . . . 3 . . 2 . Record 3 | . . . 1 . . . . . . . . . 2 . Part Schematic 3 | . 1 1 . . . 1 . . . . . . . . Robot Analysis 1 | . 1 . . . . . . . . . . . . . Prototype ID Bank 1 | . . . . . . 1 . . . . . . . . Branch Access Points 1 | . . . . . . . . . . 1 . . . . Machine Index 1 | . . . . . . 1 . . . . . . . . Unreport Threat 8 | . 2 1 . . 3 . . . . 2 . . . . EX-Prototype ID Bank 1 | . . . 1 . . . . . . . . . . . Fabricator Hacks 3 | . . . . . . . . . . 3 . . . . Load Schematic 1 | . . . . . . . . . . 1 . . . . Build 2 | . . . . . . . . . . 2 . . . . Repair Station Hacks . | . . . . . . . . . . . . . . . Recycling Unit Hacks . | . . . . . . . . . . . . . . . Scanalyzer . | . . . . . . . . . . . . . . . Garrison Access Hacks 1 | . . . . . . . . . . 1 . . . . Seal Access 1 | . . . . . . . . . . 1 . . . . Unauthorized Hacks 5 | . . . . . . 5 . . . . . . . . Terminals 5 | . . . . . . 5 . . . . . . . . Assimilate 1 | . . . . . . 1 . . . . . . . . Botnet 3 | . . . . . . 3 . . . . . . . . Operators 1 | . . . . . . 1 . . . . . . . . Fabricators . | . . . . . . . . . . . . . . . Repair Stations . | . . . . . . . . . . . . . . . Recycling Units . | . . . . . . . . . . . . . . . Scanalyzers . | . . . . . . . . . . . . . . . Garrison Access . | . . . . . . . . . . . . . . . Data Cores Recovered . | . . . . . . . . . . . . . . . Used . | . . . . . . . . . . . . . . . Hacking Detections 18 | . 2 1 . . 5 3 . . . 7 . . . . Full Trace Events 1 | . . . . . . . . . . 1 . . . . Feedback Events . | . . . . . . . . . . . . . . . Feedback Blocked . | . . . . . . . . . . . . . . . Robot Schematics Acquired . | . . . . . . . . . . . . . . . Robots Built . | . . . . . . . . . . . . . . . Matter . | . . . . . . . . . . . . . . . Time . | . . . . . . . . . . . . . . . Total Robot Build Rating . | . . . . . . . . . . . . . . . Part Schematics Acquired 3 | . 1 1 . . . 1 . . . . . . . . Parts Built 2 | . . . . . . . . . . 2 . . . . Matter 204 | . . . . . . . . . . 204 . . . . Time 102 | . . . . . . . . . . 102 . . . . Total Part Build Rating 2 | . . . . . . . . . . 2 . . . . Parts Repaired . | . . . . . . . . . . . . . . . Time . | . . . . . . . . . . . . . . . Parts Recycled . | . . . . . . . . . . . . . . . Recycled Matter . | . . . . . . . . . . . . . . . Retrieved Matter . | . . . . . . . . . . . . . . . Retrieved Components . | . . . . . . . . . . . . . . . Parts Scanalyzed . | . . . . . . . . . . . . . . . Part Schematics Acquired . | . . . . . . . . . . . . . . . Parts Damaged . | . . . . . . . . . . . . . . . Bothacking | -11 -10 -10 -10 -9 -8 -7 -7 -6 -5 -5 -5 -5 -5 -4 ------------ Run | Scr Mat Min Exi Min Mat Fac Low Zio Pro Fac Upp Upp Zhi Pro Used RIF Installer . | . . . . . . . . . . . . . . . Robots Hacked . | . . . . . . . . . . . . . . . Non-combat . | . . . . . . . . . . . . . . . Combat . | . . . . . . . . . . . . . . . Robot Hacks Applied . | . . . . . . . . . . . . . . . Relay Couplers Released 2 | . . . . . 2 . . . . . . . . . Machine Destruction 2 | . . . . . 2 . . . . . . . . . Robots Rewired 2 | . . . . . . . . . . . 2 . . . Allies Hacked . | . . . . . . . . . . . . . . . Hacks Repelled . | . . . . . . . . . . . . . . . Allies | -11 -10 -10 -10 -9 -8 -7 -7 -6 -5 -5 -5 -5 -5 -4 -------- Run | Scr Mat Min Exi Min Mat Fac Low Zio Pro Fac Upp Upp Zhi Pro Total Allies 8 | . . 3 . 2 . 1 . . . . 2 . . . Largest Group 3 | . . 3 3 3 2 1 1 1 1 . 2 2 . . Highest-Rated Group 79 | . . 40 40 48 48 10 10 10 10 . 79 79 . . Highest-Rated Ally 49 | . . 16 16 31 31 10 10 10 10 . 49 49 . . Total Orders 10 | . . . . . . 7 . . 3 . . . . . GOTO 6 | . . . . . . 4 . . 2 . . . . . FOLLOW 4 | . . . . . . 3 . . 1 . . . . . Ally Attacks 46 | . . . . 23 9 . . . . . . 14 . . Total Damage 884 | . . . . 177 123 . . . . . . 584 . . Kills 9 | . . . . 2 1 . . . . . . 6 . . Allies Corrupted . | . . . . . . . . . . . . . . . Allies Melted . | . . . . . . . . . . . . . . . Intel | -11 -10 -10 -10 -9 -8 -7 -7 -6 -5 -5 -5 -5 -5 -4 ------- Run | Scr Mat Min Exi Min Mat Fac Low Zio Pro Fac Upp Upp Zhi Pro Robot Analysis Total 1 | . 1 . . . . . . . . . . . . . Derelict Logs Recovered 10 | . . 2 . 3 . . . 1 2 . . 1 . 1 Drone Launches . | . . . . . . . . . . . . . . . Drone Recoveries . | . . . . . . . . . . . . . . . Exploration | -11 -10 -10 -10 -9 -8 -7 -7 -6 -5 -5 -5 -5 -5 -4 ------------- Run | Scr Mat Min Exi Min Mat Fac Low Zio Pro Fac Upp Upp Zhi Pro Turns Passed 11322 | 10 492 980 467 810 606 836 324 2397 971 2141 695 306 94 193 Spaces Moved 6275 | 7 276 620 277 324 277 409 181 1196 406 911 488 363 163 377 Core 832 | . . . . . . . . . . . . 298 163 371 Treads 478 | . . . . . . . . . . 478 . . . . Legs 4194 | 7 276 620 277 324 277 409 181 1196 406 209 . 12 . . Wheels 765 | . . . . . . . . . . 224 488 53 . . Hover . | . . . . . . . . . . . . . . . Flight 6 | . . . . . . . . . . . . . . 6 Fastest Speed 50 | 120 120 150 150 240 150 150 180 180 210 120 110 50 50 50 Average Speed 160 | 120 139 150 164 240 179 175 180 196 219 175 119 69 50 50 Slowest Speed 1300 | 120 150 150 240 240 180 180 180 210 390 270 120 1300 50 60 Overloaded Moves . | . . . . . . . . . . . . . . . Propulsion Burnouts . | . . . . . . . . . . . . . . . Robots Hopped 3 | . . . . . . . . 3 . . . . . . Cave-ins Triggered . | . . . . . . . . . . . . . . . Exploration Rate (%) 50 | 2 52 93 64 75 24 10 32 86 55 20 62 58 62 55 Regions Visited 14 Branch Regions 10 Pre-discovered Areas 3 | . . . 1 . . . . 2 . . . . . . Known Exits Taken 5 | . . . 1 . . . . . . 1 1 1 1 . Unknown Exits Taken 9 | 1 1 1 . 1 1 1 1 1 1 . . . . . Scrap Searched 16 | . . 3 . 1 . . 1 2 3 . 1 4 . 1 Spaces Dug . | . . . . . . . . . . . . . . . Terrain Destroyed 321 | . . 8 . 18 19 . . . 53 143 71 9 . . Melee . | . . . . . . . . . . . . . . . Projectile 58 | . . . . . 1 . . . 12 17 19 9 . . AOE 263 | . . 8 . 18 18 . . . 41 126 52 . . . Actions | -11 -10 -10 -10 -9 -8 -7 -7 -6 -5 -5 -5 -5 -5 -4 --------- Run | Scr Mat Min Exi Min Mat Fac Low Zio Pro Fac Upp Upp Zhi Pro Total 7151 | 10 321 653 289 343 344 501 180 1258 436 1317 557 386 176 380 Wait 204 | . . 3 . 1 10 12 . 1 . 164 13 . . . Move 6256 | 6 275 619 276 323 276 408 180 1190 405 910 487 362 162 377 Hop 2 | . . . . . . . . 2 . . . . . . Pick Up 145 | . 6 5 9 8 7 17 . 41 1 49 . . 2 . Fast Attach 64 | . 1 . 1 . 2 7 . . 1 39 2 4 4 3 Attach 41 | . 1 . . . 5 4 . 1 3 19 3 4 1 . Detach 10 | . . . 1 . 1 . . 2 . 3 . . 3 . Swap 47 | . 4 6 . 4 7 9 . . 1 13 3 . . . Drop 116 | 4 1 8 2 . 8 22 . 20 . 45 . 2 4 . Fire 235 | . 33 12 . 7 28 22 . 1 25 75 18 14 . . Melee . | . . . . . . . . . . . . . . . Ram . | . . . . . . . . . . . . . . . Kick . | . . . . . . . . . . . . . . . Crush . | . . . . . . . . . . . . . . . Escape Stasis . | . . . . . . . . . . . . . . . Rewire 31 | . . . . . . . . . . . 31 . . . Trap . | . . . . . . . . . . . . . . . Miscellaneous . | . . . . . . . . . . . . . . . Route ------- -11/Scrapyard -10/Materials (discovered 2 exits: [*Mat] / *Min) -10/Mines (discovered 2 exits: [*Mat] / *Exi) -10/Exiles (discovered 2 exits: *Min x2) -9/Mines -8/Materials -7/Factory -7/Lower Caves -6/Zion -5/Proximity Caves -5/Factory (discovered 2 exits: *Upp x2) -5/Upper Caves -5/Upper Caves -5/Zhirov -4/Proximity Caves History --------- Turn | Location | Event 1 | -11/Scrapyard | Discovered new exit (range 3) 11 | -11/Scrapyard | Entered Materials 222 | -10/Materials | Discovered new exit (range 6) 308 | -10/Materials | Build established: Mutant 479 | -10/Materials | Discovered new exit (range 8) 503 | -10/Materials | Entered Mines 617 | -10/Mines | Discovered new exit (range 17) 706 | -10/Mines | Build established: Scavenger-Mutant 792 | -10/Mines | Learned Materials stockpile data 1192 | -10/Mines | Build established: Mutant 1253 | -10/Mines | Assisted by bots powering up and referring to "LRC-V3" 1472 | -10/Mines | Deemed a non-threat by the Exiles lab entrance 1472 | -10/Mines | Discovered new exit (range 5) 1483 | -10/Mines | Entered Exiles 1483 | -10/Exiles | Accompanied by 3 allies 1484 | -10/Exiles | Identified exit to Mines 1524 | -10/Exiles | Met 8R-AWN 1545 | -10/Exiles | Met EX-HEX 1588 | -10/Exiles | Met EX-BIN 1605 | -10/Exiles | Aligned with FarCom system 1606 | -10/Exiles | Given EX-Vault access code 1656 | -10/Exiles | Opened EX-Vault 1668 | -10/Exiles | Found Modified TNC 1707 | -10/Exiles | Warned to stay clear of 0b10 Research branches 1750 | -10/Exiles | Met EX-DEC 1762 | -10/Exiles | Learned location of Zion (-6) 1950 | -10/Exiles | Left Exiles lab with Modified TNC 1950 | -10/Exiles | Entered Mines 1950 | -9/Mines | Accompanied by 3 allies 2120 | -9/Mines | Build established: Hauler-Mutant 2244 | -9/Mines | Learned 4 Materials zone layouts 2352 | -9/Mines | Learned Materials stockpile data 2648 | -9/Mines | Learned Materials emergency access door positions 2745 | -9/Mines | Discovered new exit (range 5) 2760 | -9/Mines | Entered Materials 2760 | -8/Materials | Accompanied by 2 allies 2760 | -8/Materials | Evolved 4 slots: Propulsion x2, Utility x2 2765 | -8/Materials | Led the pair of lost Derelicts to an unsafe place 2917 | -8/Materials | Garrison activated, responded to threat 3339 | -8/Materials | Discovered new exit (range 7) 3366 | -8/Materials | Entered Factory 3366 | -7/Factory | Evolved 2 slots: Utility x2 4055 | -7/Factory | Build established: Scavenger-Mutant 4197 | -7/Factory | Discovered new exit (range 3) 4202 | -7/Factory | Entered Lower Caves 4202 | -7/Lower Caves | Accompanied by 1 ally 4468 | -7/Lower Caves | A Derelict revealed a hidden shortcut to a safe place 4526 | -7/Lower Caves | Entered Zion 4526 | -6/Zion | Accompanied by 1 ally 5437 | -6/Zion | Learned Factory emergency access door positions 5492 | -6/Zion | Found Prototype Processor 5496 | -6/Zion | Found Prototype Processor 5499 | -6/Zion | Found Exp. Signal Interpreter 5511 | -6/Zion | Found Prototype Processor 5522 | -6/Zion | Found Exp. Signal Interpreter 5532 | -6/Zion | Found Prototype Processor 5778 | -6/Zion | Build established: Hauler-Mutant 5829 | -6/Zion | Rebuked by Imprinter 6759 | -6/Zion | Learned location of Warlord (-4) 6886 | -6/Zion | Discovered new exit (range 16) 6923 | -6/Zion | Entered Proximity Caves 6923 | -5/Proximity Caves | Accompanied by 1 ally 7300 | -5/Proximity Caves | Learned Factory emergency access door positions 7756 | -5/Proximity Caves | Lost 6 parts (1p5n) 7776 | -5/Proximity Caves | Discovered new exit (range 15) 7894 | -5/Proximity Caves | Entered Factory 7894 | -5/Factory | Evolved 4 slots: Utility x2, Weapon x2 7894 | -5/Factory | Identified Exp. Terrain Scan Processor (x2) 7895 | -5/Factory | Identified Exp. Targeting Computer 7897 | -5/Factory | Identified Exp. Target Analyzer 8191 | -5/Factory | Build established: Hauler-Skirmisher 8527 | -5/Factory | Lost 4 parts (1p2u1w) 8724 | -5/Factory | Lost 4 parts (1n1u2w) 8994 | -5/Factory | Garrison activated, responded to threat 9018 | -5/Factory | Destroyed 9 combat bots 9292 | -5/Factory | Build established: Scavenger-Skirmisher 9322 | -5/Factory | Fabricated Hcp. Storage Unit (x1) 9399 | -5/Factory | Fabricated Hcp. Storage Unit (x1) 9418 | -5/Factory | System corruption reached 10% 9694 | -5/Factory | First assault squad dispatched 9725 | -5/Factory | Identified exit to Upper Caves 10035 | -5/Factory | Entered Upper Caves 10230 | -5/Upper Caves | Attracted the attention of an 0b10 checkpoint 10339 | -5/Upper Caves | Build established: Scavenger-Gunner 10403 | -5/Upper Caves | Attracted the attention of an 0b10 outpost 10448 | -5/Upper Caves | Lost 7 parts (1p2n1u3w) 10512 | -5/Upper Caves | Lost 4 parts (2u2w) 10651 | -5/Upper Caves | Discovered new exit (range 16) 10670 | -5/Upper Caves | Identified exit to Upper Caves 10730 | -5/Upper Caves | Entered another Upper Caves area 10730 | -5/Upper Caves | Accompanied by 2 allies 10812 | -5/Upper Caves | Attracted the attention of an 0b10 outpost 10885 | -5/Upper Caves | Core integrity fell below 50% 10925 | -5/Upper Caves | Lost 8 parts (1n4u3w) 10974 | -5/Upper Caves | Discovered new exit (range 14) 10980 | -5/Upper Caves | Identified exit to Zhirov 10998 | -5/Upper Caves | Learned location of 1 exit from Factory 11036 | -5/Upper Caves | Entered Zhirov 11036 | -5/Zhirov | Discovered new exit (range 3) 11046 | -5/Zhirov | Met Zhirov 11064 | -5/Zhirov | Zhirov requested help retrieving the SGEMP Prototype 11075 | -5/Zhirov | Found Alien Artifact 11075 | -5/Zhirov | Identified Integrated Reactor 11075 | -5/Zhirov | Installed Integrated Reactor, increased core energy generation (+2%) 11088 | -5/Zhirov | Found Alien Artifact 11129 | -5/Zhirov | Identified exit to Proximity Caves 11130 | -5/Zhirov | Entered Proximity Caves 11290 | -4/Proximity Caves | Core integrity fell below 20% 11315 | -4/Proximity Caves | Learned Research trap positions 11319 | -4/Proximity Caves | Spotted B-86 Titan 11323 | -4/Proximity Caves | Destroyed by B-86 Titan with Matter Neutralizer Last Messages --------------- 11209_ System corrupted: Energy discharge (-35). 11241_ 65OP&5UA4JGLBIUR,8Q|J5W/P> BJ S98U 11262_ System corrupted: Heat flow error (+152). 11277_ Adv. Hacking Suite destroyed. 11280_ S-27 Virus triggered Dirty Bomb Trap. 11280_ An explosion rips through the floor. 11280_ Mak. Leg destroyed. 11289_ Adv. Targeting Computer destroyed. 11289_ G-67 Veteran springs to life. 11289_ Carbon-fiber Leg destroyed. 11289_ G-67 Veteran springs to life. 11299_ Z4KA%8YM7NB>C,:WU|D &<#JYXGEP6VCKMK 11303_ Mak. Flight Unit destroyed. 11305_ Acquired 37 matter. 11307_ Acquired 19 matter. 11315_ Acquired derelict log, extracted data. Data stored: Research trap records. 11320_ Knocked back. 11320_ Penetrated by Slug. 11323_ Imp. Core Shielding destroyed. Map ----- +----------------------------------------------------+ | #????????????????????????????????????????????????? | | #????????????????????????????????????????????????? | | ?????????????????????????????????????????????????? | | ?????????????????????????????????????????????????? | | ?????????????????????????????????????????????????? | | ?????????????????????????????????????????????????? | | ?????????????????????????????????????????????????? | | ?????????????????????????????????????????????????? | | ?????????????????????????????????????????????????? | | ?????????????????????????????????????????????????? | | ?????????????????????????????????????????????????? | | ?????????????????????????????????????????????????? | | ?????????????????????????????????????????????????? | | ?????????????????????????????????????????????????? | | ???????????? #???????????????????????????????????? | | ????????? ???????????????????????????????????? | | ? ?????? ???????????????????????????????????? | | # ?????? #??????????????????????????????????? | | # #??????# ##?????????????????????????????????? | | # #???????# #?????????????????????????????????? | | # ##?????## ######???????????????????????????? | | ####### ##??????????????????????????? | | ? #??????????????????????????? | | ???? BB #########??????????????????? | | ##????? # BB ##?????????????????? | | ## ###???# # @ #?????????????????? | | #???# # ss ### ## #????????????????? | | # #???# ###;# ####?? #?????????????????????? | | # ##### ##### #??????#?????????????????????? | | # ## #????????????????????????????? | | # ###### ##????????????????????????????? | | "%###???## ##?????????????????????????????? | | " "#?????# ##??????????????????????????????? | | " #??#### #???????????????????????????????? | | " #??# ###?????????????????????????????? | | #?# """ #?????????????????????????????? | | """""" #?????????????????????????????? | | """ """ #?????????????????????????????? | | ### """ #?????????????????????????????? | | ## #?## """ """ #?????????????????????????????? | | ?# ??### """""" #?????????????????????????????? | | ? ????# """ #?????????????????????????????? | | ? ????????? #?????????????????????????????? | | ? ????????? #####?????????????????????????????? | | ? ?????????? ??????????????????????????????????? | | ?###?????????????????????????????????????????????? | | ?????????????????????????????????????????????????? | | ?????????????????????????????????????????????????? | | ?????????????????????????????????????????????????? | | ?????????????????????????????????????????????????? | +----------------------------------------------------+ Best States ------------- Heat Dissipation 81 Energy Generation 19 Energy Capacity 310 Matter Stores 300 Matter Capacity 300 Sight Range 18 Terrain Scan Range 18 Terrain Scan Density 1010 Armor Coverage 225 Core Shielding 30 Utility Shielding 33 Melee Speed Boost 20 Evasion (%) 60 Targeting Accuracy 8 Target Analysis 6 Core Analysis 10 Recoil Reduction 4 Offensive Hacking 28 Defensive Hacking 14 Item Schematics ----------------- Hcp. Storage Unit | -10/Materials | Hacked Lrg. Storage Unit | -10/Mines | Hacked Adv. EMP Blaster | -7/Factory | Hacked Robot Schematics ------------------ None Fabricated ------------ Hcp. Storage Unit | x1 | -5/Factory Hcp. Storage Unit | x1 | -5/Factory Alien Tech Used ----------------- Integrated Reactor Achievements -------------- None Challenges ------------ None Game ------ Seed SpikedMetafieldSheargun Manual? 0 Play Time 01:16:04 Cumulative 271.9 hours Start 2020.06.11 @ 22:36:59 End 2020.07.04 @ 15:41:09 Sessions 9 Manual Loads 0 Difficulty Rogue Special Mode None Game No. 413 Rogue 412 Adventurer 0 Explorer 1 Win Type - Total 1 Types 1/0/0/0/0/0/0 Lore% 67 Gallery% 81 Achievement% 55 Wizard Run 0 Options --------- ASCII 1 Keyboard 1 Movement Vi Keybinds 0 Fullscreen 2 Font 14/Cog Map View 72x54 Tactical HUD 1 Map Filters NONE Filters LOW_CONTRAST(13,24,33) Steam 0 RUN: 35f2d224-0746-42d2-8331-e347bf508268